bitfinex/quotes_BTCUSD_20251212
["timestamp","ask_amount","ask_price","bid_price","bid_amount"]
[1765548905546,0.69508826,92277.0,92276.0,0.00223103]
[1765548905979,0.71220826,92277.0,92276.0,0.00223103]
[1765548906330,0.68885639,92277.0,92276.0,0.00223103]
[1765548906532,0.348138,92277.0,92276.0,0.00223103]
[1765548906959,0.68885639,92277.0,92276.0,0.00223103]
[1765548907113,0.79936401,92277.0,92276.0,0.00223103]
[1765548907315,0.79336401,92277.0,92276.0,0.00123103]
[1765548907659,0.81468521,92277.0,92276.0,0.00123103]
[1765548908058,0.80968521,92277.0,92276.0,0.00023103]
[1765548908477,0.81468521,92277.0,92276.0,0.00123103]
[1765548908680,0.82480484,92277.0,92276.0,0.00123103]
[1765548908817,0.83180484,92277.0,92276.0,0.00223103]
[1765548909463,0.81980484,92277.0,92276.0,0.00023103]
[1765548909987,0.83180484,92277.0,92276.0,0.00223103]
[1765548910425,0.82480484,92277.0,92276.0,0.00123103]
[1765548910801,0.83180484,92277.0,92276.0,0.00223103]
[1765548911415,0.82168521,92277.0,92276.0,0.00223103]
[1765548911638,0.83179988,92277.0,92276.0,0.00223103]
[1765548911996,1.07439988,92277.0,92276.0,0.00223103]
[1765548913129,1.98524421,92277.0,92276.0,0.00223103]
[1765548913333,0.60198149,92271.0,92268.0,9e-05]
[1765548913542,0.76664122,92271.0,92268.0,9e-05]
[1765548913757,0.78994316,92271.0,92268.0,9e-05]
[1765548914136,0.7942839,92271.0,92268.0,9e-05]
[1765548914340,0.77098196,92271.0,92268.0,9e-05]
[1765548914767,0.77598196,92271.0,92270.0,0.0012]
[1765548916106,0.78198196,92271.0,92270.0,0.0022]
[1765548917871,1.02458196,92271.0,92270.0,0.0022]
[1765548921235,1.04788259,92271.0,92270.0,0.0022]
[1765548924148,1.0580027,92271.0,92270.0,0.0022]
[1765548925690,3.0580027,92271.0,92270.0,0.0022]
[1765548925910,3.0324517,92271.0,92270.0,0.0022]
[1765548926552,2.6148087,92271.0,92270.0,0.0022]
[1765548927651,2.3058327,92271.0,92270.0,0.0022]
[1765548929001,2.3058327,92271.0,92270.0,1e-08]
[1765548929995,2.55052319,92269.0,92268.0,1e-08]
[1765548930179,2.48855293,92269.0,92268.0,1e-08]
[1765548930834,2.49289429,92269.0,92268.0,1e-08]
[1765548931253,2.53179131,92269.0,92268.0,1e-08]
[1765548931406,2.53879131,92269.0,92268.0,1e-08]
[1765548931596,2.64929891,92269.0,92268.0,1e-08]
[1765548932004,1.99131191,92269.0,92268.0,1e-08]
[1765548933079,2.10541191,92269.0,92268.0,1e-08]
[1765548933358,1.95241489,92269.0,92268.0,1e-08]
[1765548933591,2.03244705,92269.0,92268.0,1e-08]
[1765548933765,1.95241489,92269.0,92268.0,1e-08]
[1765548934345,1.95941489,92269.0,92268.0,1e-08]
[1765548935786,2.20201489,92269.0,92268.0,1e-08]
[1765548938662,2.28288436,92269.0,92268.0,1e-08]
[1765548939441,2.32178138,92269.0,92268.0,1e-08]
[1765548939650,2.28288436,92269.0,92268.0,1e-08]
[1765548940375,2.60202848,92251.0,92250.0,0.0002]
[1765548940523,2.50836722,92251.0,92250.0,0.0002]
[1765548940732,1.83135322,92251.0,92250.0,0.0002]
[1765548940968,1.06247222,92251.0,92250.0,0.0002]
[1765548941177,1.08393428,92251.0,92250.0,0.0002]
[1765548941403,1.1994419,92251.0,92250.0,0.0002]
[1765548941600,1.19952609,92251.0,92250.0,0.0002]
[1765548941793,1.20552609,92251.0,92250.0,0.0002]
[1765548942843,1.2596782,92251.0,92250.0,0.0002]
[1765548943200,0.87231658,92251.0,92250.0,0.0002]
[1765548943407,1.00301558,92251.0,92250.0,0.0002]
[1765548943609,0.84147058,92251.0,92250.0,0.0002]
[1765548943808,0.84347058,92251.0,92250.0,0.0002]
[1765548944198,0.85108345,92251.0,92250.0,0.0002]
[1765548944495,1.18107107,92251.0,92250.0,0.0002]
[1765548944735,1.19819107,92251.0,92250.0,0.0002]
[1765548944947,1.20319107,92251.0,92250.0,0.0002]
[1765548945377,1.07556345,92251.0,92250.0,0.0002]
[1765548945555,1.05906345,92251.0,92250.0,0.0002]
[1765548945792,1.07618345,92251.0,92250.0,0.0002]
[1765548945916,1.07618345,92251.0,92250.0,0.00072001]
[1765548947332,0.96736045,92251.0,92250.0,0.00072001]
[1765548947573,1.26013045,92251.0,92250.0,0.00072001]
[1765548948800,1.18945407,92251.0,92250.0,0.00072001]
[1765548950773,1.17233407,92251.0,92250.0,0.00072001]
[1765548950977,1.18945407,92251.0,92250.0,0.00072001]
[1765548951611,0.84606995,92251.0,92250.0,0.00072001]
[1765548951807,0.82976921,92251.0,92250.0,0.00072001]
[1765548952012,0.8797876,92251.0,92250.0,0.00072001]
[1765548954017,0.8626676,92251.0,92250.0,0.00072001]
[1765548954249,0.8797876,92251.0,92250.0,0.00072001]
[1765548955422,0.89722411,92251.0,92250.0,0.00072001]
[1765548956405,2.22995155,92251.0,92250.0,0.00072001]
[1765548956629,2.2400709,92251.0,92250.0,0.00072001]
[1765548957909,2.2280709,92251.0,92250.0,0.00072001]
[1765548958110,2.2320709,92251.0,92250.0,0.00072001]
[1765548958318,2.2390709,92251.0,92250.0,0.00072001]
[1765548960579,1.9585079,92251.0,92250.0,0.00072001]
[1765548961084,1.5760189,92251.0,92250.0,0.00072001]
[1765548961279,1.2044969,92251.0,92250.0,0.00072001]
[1765548962286,1.20449506,92251.0,92250.0,0.00072001]
[1765548962642,1.20449506,92251.0,92250.0,1e-08]
[1765548963945,1.18705855,92251.0,92250.0,1e-08]
[1765548964127,1.02118855,92251.0,92250.0,1e-08]
[1765548964334,1.03830855,92251.0,92250.0,1e-08]
[1765548964552,1.03023755,92251.0,92250.0,1e-08]
[1765548966374,0.60853627,92251.0,92250.0,1e-08]
[1765548966591,0.99798227,92251.0,92250.0,1e-08]
[1765548966780,1.28868227,92251.0,92250.0,1e-08]
[1765548966920,1.44920828,92251.0,92250.0,1e-08]
[1765548967124,1.44907712,92251.0,92250.0,1e-08]
[1765548969263,1.44908132,92251.0,92250.0,1e-08]
[1765548970868,1.3385737,92251.0,92250.0,1e-08]
[1765548971642,1.2121737,92251.0,92250.0,1e-08]
[1765548979155,0.90461742,92251.0,92250.0,1e-08]
[1765548979355,1.2143647,92251.0,92250.0,1e-08]
[1765548979541,0.9662477,92251.0,92250.0,1e-08]
[1765548979752,1.2716647,92251.0,92250.0,1e-08]
[1765548980385,1.20894509,92251.0,92250.0,1e-08]
[1765548981385,0.99549999,92251.0,92250.0,1e-08]
[1765548981650,1.24361699,92251.0,92250.0,1e-08]
[1765548982626,0.99549999,92251.0,92250.0,1e-08]
[1765548982831,1.24361699,92251.0,92250.0,1e-08]
[1765548983508,1.21436509,92251.0,92250.0,1e-08]
[1765548983882,0.96624809,92251.0,92250.0,1e-08]
[1765548984285,1.26714509,92251.0,92250.0,1e-08]
[1765548984482,0.96624809,92251.0,92250.0,1e-08]
[1765548984735,1.15273481,92251.0,92250.0,1e-08]
[1765548984939,1.19724509,92251.0,92250.0,1e-08]
[1765548985115,0.96624809,92251.0,92250.0,1e-08]
[1765548985291,0.8991097,92251.0,92250.0,1e-08]
[1765548985503,0.9162297,92251.0,92250.0,1e-08]
[1765548986723,1.02673732,92251.0,92250.0,1e-08]
[1765548987975,1.01661522,92251.0,92250.0,1e-08]
[1765548988343,0.9061076,92251.0,92250.0,1e-08]
[1765548991569,0.84447732,92251.0,92250.0,1e-08]
[1765548991773,0.80744521,92251.0,92250.0,1e-08]
[1765548991973,0.47630777,92251.0,92250.0,1e-08]
[1765548992201,0.48908571,92251.0,92250.0,1e-08]
[1765548992755,0.48208571,92251.0,92250.0,1e-08]
[1765548992956,0.47808571,92251.0,92250.0,1e-08]
[1765548993143,0.48408571,92251.0,92250.0,1e-08]
[1765548993302,0.48608571,92251.0,92250.0,1e-08]
[1765548993740,0.48008571,92251.0,92250.0,1e-08]
[1765548993969,0.21875284,92251.0,92250.0,1e-08]
[1765548994171,0.21675284,92251.0,92250.0,1e-08]
[1765548994946,0.26326312,92251.0,92250.0,1e-08]
[1765548995147,0.26826312,92251.0,92250.0,1e-08]
[1765548995353,0.36942221,92251.0,92250.0,1e-08]
[1765548995780,0.36442221,92251.0,92250.0,1e-08]
[1765548996179,0.26926312,92251.0,92250.0,1e-08]
[1765549002518,0.22475284,92251.0,92250.0,1e-08]
[1765549002758,0.24187284,92251.0,92250.0,1e-08]
[1765549003166,0.28638312,92251.0,92250.0,1e-08]
[1765549004118,0.26926312,92251.0,92250.0,1e-08]
[1765549005973,0.22475284,92251.0,92250.0,1e-08]
[1765549010008,0.26926312,92251.0,92250.0,1e-08]
[1765549011091,0.22475284,92251.0,92250.0,1e-08]
[1765549011290,0.26926312,92251.0,92250.0,1e-08]
[1765549012104,0.36843422,92251.0,92250.0,1e-08]
[1765549013411,0.27087599,92251.0,92250.0,1e-08]
[1765549013614,0.28799599,92251.0,92250.0,1e-08]
[1765549016306,0.27087599,92251.0,92250.0,1e-08]
[1765549016586,0.28799599,92251.0,92250.0,1e-08]
[1765549018799,0.22636571,92251.0,92250.0,1e-08]
[1765549018999,0.24348571,92251.0,92250.0,1e-08]
[1765549019199,0.22636571,92251.0,92250.0,1e-08]
[1765549019608,0.22475284,92251.0,92250.0,1e-08]
[1765549029893,0.22275284,92251.0,92250.0,1e-08]
[1765549030320,0.21775284,92251.0,92250.0,1e-08]
[1765549030940,0.21875284,92251.0,92250.0,0.00100001]
[1765549031477,0.21875284,92251.0,92250.0,0.00100001]
[1765549032483,0.26326312,92251.0,92250.0,0.00100001]
[1765549033111,0.21875284,92251.0,92250.0,0.00100001]
[1765549035157,0.26326312,92251.0,92250.0,0.00100001]
[1765549036814,0.21875284,92251.0,92250.0,0.00100001]
[1765549054498,0.218884,92251.0,92250.0,0.00100001]
[1765549081117,0.26339428,92251.0,92250.0,0.00100001]
[1765549081546,0.218884,92251.0,92250.0,0.00100001]
[1765549103471,0.00208419,92251.0,92250.0,0.00100001]
[1765549104639,0.218884,92251.0,92250.0,0.00100001]
[1765549104844,0.00208419,92251.0,92250.0,0.00100001]
[1765549105245,0.218884,92251.0,92250.0,0.00100001]
[1765549105447,0.00208419,92251.0,92250.0,0.03637001]
[1765549106810,0.00208419,92251.0,92250.0,0.25317217]
[1765549108214,0.00208419,92251.0,92250.0,0.03637001]
[1765549108678,0.00208419,92251.0,92250.0,0.25317217]
[1765549109463,0.00208419,92251.0,92250.0,0.28571869]
[1765549109639,0.00208419,92251.0,92250.0,0.21780217]
[1765549109843,0.00108419,92251.0,92250.0,0.21680217]
[1765549110045,8.419e-05,92251.0,92250.0,1e-08]
[1765549110248,8.419e-05,92251.0,92250.0,0.23983217]
[1765549110480,0.00108419,92251.0,92250.0,0.57466015]
[1765549110683,0.21673489,92279.0,92250.0,0.57466015]
[1765549110684,0.05373359,92283.0,92250.0,0.53153217]
[1765549110879,0.05373359,92283.0,92281.0,0.01234]
[1765549110880,6.745e-05,92282.0,92281.0,0.01234]
[1765549111137,6.745e-05,92282.0,92281.0,0.22906933]
[1765549111391,6.745e-05,92282.0,92281.0,0.28322144]
[1765549111593,6.745e-05,92282.0,92281.0,0.30625144]
[1765549112031,6.745e-05,92282.0,92281.0,0.08952211]
[1765549112481,0.21679443,92282.0,92281.0,0.06649211]
[1765549113331,0.00306745,92282.0,92281.0,0.06749211]
[1765549113733,0.00406745,92282.0,92281.0,0.06749211]
[1765549113949,0.00406745,92282.0,92281.0,0.32272144]
[1765549114147,0.22079443,92282.0,92281.0,0.10599211]
[1765549115150,0.21979443,92282.0,92281.0,0.10599211]
[1765549115547,0.22479443,92282.0,92281.0,0.10699211]
[1765549115745,0.00806745,92282.0,92281.0,0.10699211]
[1765549116558,0.22479443,92282.0,92281.0,0.10699211]
[1765549116906,0.22479443,92282.0,92281.0,0.02981]
[1765549117255,0.22479443,92282.0,92281.0,0.01434]
[1765549119983,0.24075443,92282.0,92281.0,0.002]
[1765549120185,0.35698969,92282.0,92281.0,0.002]
[1765549120392,0.37406969,92282.0,92281.0,0.002]
[1765549121589,0.38614969,92282.0,92281.0,0.001]
[1765549121999,0.38814969,92282.0,92281.0,0.001]
[1765549122416,0.39314969,92282.0,92281.0,0.002]
[1765549123030,0.4855168,92282.0,92281.0,0.002]
[1765549128396,0.39314969,92282.0,92281.0,0.002]
[1765549128989,0.37606969,92282.0,92281.0,0.002]
[1765549151736,0.36010969,92282.0,92281.0,0.002]
[1765549151960,0.2454873,92282.0,92281.0,0.002]
[1765549152177,0.2284073,92282.0,92281.0,0.0517]
[1765549154774,0.22679443,92282.0,92281.0,0.0517]
[1765549157253,0.01006745,92282.0,92281.0,0.26842933]
[1765549157682,0.01006745,92282.0,92281.0,0.32258144]
[1765549158266,0.00506745,92282.0,92281.0,0.10485211]
[1765549158480,6.745e-05,92282.0,92281.0,0.10385211]
[1765549158653,0.00106745,92282.0,92281.0,0.10385211]
[1765549158857,0.00106745,92282.0,92281.0,0.10485211]
[1765549159883,0.00106745,92282.0,92281.0,0.32158144]
[1765549160269,0.00106745,92282.0,92281.0,0.10585211]
[1765549160676,0.00206745,92282.0,92281.0,0.10785211]
[1765549161328,0.00206745,92282.0,92281.0,0.32458144]
[1765549161708,0.00206745,92282.0,92281.0,0.36770942]
[1765549161916,0.00206745,92282.0,92281.0,0.15098009]
[1765549162121,0.00206745,92282.0,92281.0,0.36770942]
[1765549162813,0.00206745,92282.0,92281.0,0.32458144]
[1765549163884,0.00206745,92282.0,92281.0,0.36770942]
[1765549164527,0.00206745,92282.0,92281.0,0.65840942]
[1765549164746,6.745e-05,92282.0,92281.0,0.65440942]
[1765549164950,0.00106745,92282.0,92281.0,0.65740942]
[1765549165162,0.00206745,92282.0,92281.0,0.66140942]
[1765549167816,0.00206745,92282.0,92281.0,0.61828144]
[1765549168107,0.00206745,92282.0,92281.0,0.66140942]
[1765549172187,0.00106745,92282.0,92281.0,0.65840942]
[1765549172414,6.745e-05,92282.0,92281.0,0.78241774]
[1765549172589,6.745e-05,92282.0,92281.0,0.70442781]
[1765549173145,6.745e-05,92282.0,92281.0,0.78206898]
[1765549173756,0.00106745,92282.0,92281.0,0.79006898]
[1765549173914,0.00206745,92282.0,92281.0,0.79006898]
[1765549174125,0.00206745,92282.0,92281.0,0.71242781]
[1765549180611,0.00206745,92282.0,92281.0,0.79006898]
[1765549183121,0.00206745,92282.0,92281.0,0.71242781]
[1765549185440,0.00206745,92282.0,92281.0,0.74256822]
[1765549193292,0.00049134,92282.0,92281.0,0.74256822]
[1765549195390,0.00049134,92282.0,92281.0,0.83965071]
[1765549197146,0.00049134,92282.0,92281.0,0.74256822]
[1765549198168,7.165e-05,92282.0,92281.0,0.74256822]
[1765549203485,1.712e-05,92282.0,92281.0,0.74256822]
[1765549208366,0.0021011,92307.0,92306.0,0.21667063]
[1765549208666,0.00378141,92307.0,92306.0,0.21667063]
[1765549209510,0.00378141,92307.0,92305.0,0.21667245]
[1765549210197,0.00378141,92307.0,92306.0,0.001]
[1765549210862,0.00378141,92307.0,92306.0,0.21767063]
[1765549211070,0.00378141,92307.0,92306.0,0.21667063]
[1765549213233,0.00378141,92307.0,92306.0,0.21767063]
[1765549213408,0.2523697,92307.0,92306.0,0.001]
[1765549215255,0.2364097,92307.0,92306.0,0.001]
[1765549218061,0.00378141,92307.0,92306.0,0.001]
[1765549218285,0.2204497,92307.0,92306.0,0.001]
[1765549218490,0.00378141,92307.0,92306.0,0.001]
[1765549218693,0.2204497,92307.0,92306.0,0.001]
[1765549219124,0.00378141,92307.0,92306.0,0.21767063]
[1765549219788,0.00216854,92307.0,92306.0,0.26923063]
[1765549220367,0.00216854,92307.0,92306.0,0.32775156]
[1765549220573,0.00216854,92307.0,92306.0,0.30321156]
[1765549220792,0.00216854,92307.0,92306.0,0.08654093]
[1765549221022,0.00216854,92307.0,92306.0,0.07105093]
[1765549221730,0.00216854,92307.0,92306.0,0.01253]
[1765549221913,0.00216854,92307.0,92306.0,0.22920063]
[1765549223086,0.00216854,92307.0,92306.0,0.01253]
[1765549223335,0.00216854,92307.0,92306.0,0.22920063]
[1765549224145,0.00216854,92307.0,92306.0,0.01253]
[1765549224344,0.21883683,92307.0,92306.0,0.001]
[1765549224522,0.00216854,92307.0,92306.0,0.001]
[1765549226917,0.21883683,92307.0,92306.0,0.001]
[1765549227467,0.00216854,92307.0,92306.0,0.001]
[1765549228515,0.00216854,92307.0,92306.0,0.21767063]
[1765549228754,0.00216854,92307.0,92306.0,0.001]
[1765549228972,0.21883683,92307.0,92306.0,0.001]
[1765549229143,0.00216854,92307.0,92306.0,0.001]
[1765549229498,0.00216854,92307.0,92306.0,0.21767063]
[1765549230479,0.00216854,92307.0,92306.0,0.27111063]
[1765549230890,0.00216854,92307.0,92306.0,0.56181063]
[1765549231095,0.00216854,92307.0,92306.0,0.60493861]
[1765549231456,0.00216854,92307.0,92306.0,0.68288191]
[1765549231659,0.00216854,92307.0,92306.0,0.63507902]
[1765549232215,0.00216854,92307.0,92306.0,0.71199339]
[1765549232412,0.00216854,92307.0,92306.0,0.71299339]
[1765549232658,0.00216854,92307.0,92306.0,0.71499339]
[1765549232869,0.00216854,92307.0,92306.0,0.71399339]
[1765549233275,0.00216854,92307.0,92306.0,0.63607902]
[1765549233490,0.00316854,92307.0,92306.0,0.63907902]
[1765549245592,0.00316854,92307.0,92306.0,0.68909741]
[1765549245766,0.01570282,92308.0,92307.0,0.60051466]
[1765549245968,0.01570282,92308.0,92307.0,0.64149466]
[1765549246594,0.01570282,92308.0,92307.0,0.65719748]
[1765549247534,0.01570282,92308.0,92307.0,0.66119748]
[1765549249314,0.01670282,92308.0,92307.0,0.66419748]
[1765549252756,0.01670282,92308.0,92307.0,0.68127748]
[1765549270458,0.01670282,92308.0,92307.0,0.77880084]
[1765549270647,0.01670282,92308.0,92307.0,0.76172084]
[1765549270870,0.01670282,92308.0,92307.0,0.77880084]
[1765549272366,0.01670282,92308.0,92307.0,0.68127748]
[1765549274358,0.00244694,92308.0,92307.0,0.68127748]
[1765549282168,0.00061518,92308.0,92307.0,0.68127748]
[1765549282598,0.00023088,92315.0,92314.0,0.60049823]
[1765549282943,0.00023088,92315.0,92314.0,0.68324034]
[1765549283230,0.00023088,92315.0,92314.0,0.70629034]
[1765549283401,0.00023088,92315.0,92314.0,0.72225034]
[1765549284351,3.315e-05,92315.0,92314.0,0.72725034]
[1765549284689,3.315e-05,92315.0,92314.0,1.72725034]
[1765549284886,0.00103315,92315.0,92314.0,1.73225034]
[1765549285710,0.00103315,92315.0,92314.0,0.73225034]
[1765549285914,0.00103315,92315.0,92314.0,1.73225034]
[1765549286749,0.00103315,92315.0,92314.0,0.73225034]
[1765549286965,0.0004,92350.0,92349.0,0.25969773]
[1765549287129,0.00050958,92350.0,92349.0,0.30461773]
[1765549287330,0.00050958,92350.0,92349.0,0.32766773]
[1765549287534,0.00050958,92350.0,92349.0,0.33618773]
[1765549288544,0.00050958,92350.0,92349.0,0.62688773]
[1765549288959,0.00050958,92350.0,92349.0,1.73105823]
[1765549289159,0.00050958,92350.0,92349.0,1.74730258]
[1765549289373,0.00050958,92350.0,92349.0,1.84530256]
[1765549289737,0.00150958,92350.0,92349.0,1.74830258]
[1765549289926,0.00050958,92350.0,92349.0,1.74830258]
[1765549290360,0.00050958,92350.0,92349.0,1.75230258]
[1765549290757,0.00050958,92350.0,92349.0,1.84930256]
[1765549291239,0.00050958,92350.0,92349.0,1.75230258]
[1765549291462,0.00050958,92350.0,92349.0,1.75130258]
[1765549291778,0.00050958,92350.0,92349.0,1.75530258]
[1765549292605,0.00151928,92350.0,92349.0,1.75530258]
[1765549298208,0.0004,92370.0,92369.0,0.55035083]
[1765549298409,0.0004,92370.0,92369.0,0.58356083]
[1765549298623,0.0004,92370.0,92369.0,0.60661083]
[1765549298838,0.0004,92370.0,92369.0,0.65662922]
[1765549299007,0.0004,92370.0,92369.0,0.66514922]
[1765549299784,0.0004,92370.0,92369.0,0.71930133]
[1765549301326,0.0004,92370.0,92369.0,0.73535376]
[1765549302479,0.0004,92370.0,92369.0,0.60302739]
[1765549302683,0.0004,92370.0,92369.0,0.58697496]
[1765549303976,0.00097674,92370.0,92369.0,0.58697496]
[1765549304382,0.00197674,92370.0,92369.0,0.58697496]
[1765549305800,0.00197674,92370.0,92369.0,0.56989496]
[1765549306253,0.00197674,92370.0,92369.0,0.58697496]
[1765549307365,0.00197674,92370.0,92369.0,0.56989496]
[1765549307599,0.00197674,92370.0,92369.0,0.58697496]
[1765549309924,0.00197674,92370.0,92369.0,0.57845496]
[1765549310130,0.00197674,92370.0,92369.0,0.56137496]
[1765549310327,0.00197674,92370.0,92369.0,0.57845496]
[1765549315378,0.00197674,92370.0,92369.0,0.63642506]
[1765549315694,0.00197674,92370.0,92369.0,0.61934506]
[1765549315943,0.00197674,92370.0,92369.0,0.67955304]
[1765549316421,0.00197674,92370.0,92369.0,0.62158294]
[1765549316623,0.00197674,92370.0,92369.0,0.57845496]
[1765549321516,0.00197674,92370.0,92369.0,0.36193211]
[1765549321723,0.00197674,92370.0,92363.0,0.25966388]
[1765549321724,0.03338674,92370.0,92361.0,0.07729347]
[1765549321913,0.03338674,92370.0,92357.0,0.01082754]
[1765549321914,0.01082708,92361.0,92358.0,0.02790743]
[1765549322125,0.22736869,92361.0,92360.0,0.03250371]
[1765549322347,0.02678708,92361.0,92358.0,0.23362775]
[1765549322547,0.01596,92361.0,92359.0,0.21654426]
[1765549322696,0.23250161,92361.0,92360.0,0.2907]
[1765549322917,0.23250161,92361.0,92358.0,0.01708]
[1765549322918,0.2165463,92359.0,92358.0,0.01708]
[1765549323126,0.22739084,92352.0,92351.0,0.05837899]
[1765549323334,0.0108279,92354.0,92351.0,0.05837899]
[1765549323554,0.24053462,92352.0,92349.0,0.27494872]
[1765549323756,0.02397,92352.0,92350.0,0.2907]
[1765549324044,0.02397,92352.0,92351.0,0.50726506]
[1765549324195,0.00852,92352.0,92351.0,0.56564405]
[1765549325482,0.00161287,92359.0,92356.0,0.01082766]
[1765549325810,0.00161287,92359.0,92358.0,0.21654864]
[1765549326796,0.00361287,92359.0,92358.0,0.21654864]
[1765549328174,0.00561287,92359.0,92358.0,0.21654864]
[1765549328373,0.00361287,92359.0,92358.0,0.21654864]
[1765549328585,0.00161287,92359.0,92358.0,0.21654864]
[1765549328740,0.00461287,92359.0,92358.0,0.21654864]
[1765549328962,0.003,92359.0,92358.0,0.23944864]
[1765549329148,0.005,92359.0,92358.0,0.31531662]
[1765549329755,0.003,92359.0,92358.0,0.31531662]
[1765549329936,0.003,92359.0,92358.0,0.27675662]
[1765549330150,0.22735244,92368.0,92365.0,0.22735714]
[1765549330355,0.24331244,92368.0,92367.0,0.05415211]
[1765549330557,0.22735046,92369.0,92367.0,0.05415211]
[1765549330843,0.2319752,92368.0,92367.0,0.05415211]
[1765549331178,0.2479352,92368.0,92367.0,0.05415211]
[1765549331511,0.2175463,92359.0,92358.0,0.01708]
[1765549331718,0.22739047,92353.0,92351.0,0.2907]
[1765549331958,0.0108279,92354.0,92351.0,0.2907]
[1765549332281,0.02343,92352.0,92351.0,0.2907]
[1765549332490,0.02343,92352.0,92351.0,0.50726506]
[1765549332686,0.03939,92352.0,92351.0,0.2907]
[1765549333554,0.21656506,92351.0,92350.0,0.2907]
[1765549333759,0.24797506,92351.0,92350.0,0.2907]
[1765549334190,0.21657913,92345.0,92339.0,0.05837899]
[1765549334393,0.21657913,92345.0,92333.0,0.01083036]
[1765549334394,0.02343,92337.0,92335.0,0.21660026]
[1765549334593,0.02343,92337.0,92336.0,0.50730024]
[1765549334837,0.00798,92337.0,92336.0,0.50730024]
[1765549335040,0.02343,92337.0,92336.0,0.50730024]
[1765549335963,0.02343,92337.0,92336.0,0.50830024]
[1765549336323,0.02343,92337.0,92336.0,0.51030024]
[1765549336496,0.02343,92337.0,92336.0,0.003]
[1765549337093,0.02343,92337.0,92336.0,0.05715211]
[1765549337704,0.02343,92337.0,92336.0,0.27375235]
[1765549338140,0.02343,92337.0,92336.0,0.27175235]
[1765549338343,0.25598789,92337.0,92336.0,0.001]
[1765549339094,0.21660024,92336.0,92335.0,0.00010958]
[1765549339296,0.24814024,92336.0,92335.0,0.00010958]
[1765549340596,0.24914024,92336.0,92335.0,0.00010958]
[1765549345420,0.03254,92336.0,92335.0,0.00010958]
[1765549345986,0.24914024,92336.0,92335.0,0.00010958]
[1765549355866,0.29365052,92336.0,92335.0,0.00010958]
[1765549365003,0.24914024,92336.0,92335.0,0.00010958]
[1765549365588,0.34861299,92336.0,92335.0,0.00010958]
[1765549366203,0.39312327,92336.0,92335.0,0.00010958]
[1765549367044,0.39212327,92336.0,92335.0,0.00010958]
[1765549367265,0.39712327,92336.0,92335.0,0.00010958]
[1765549367491,0.30265052,92336.0,92335.0,0.00010958]
[1765549368989,0.25814024,92336.0,92335.0,0.00010958]
[1765549371563,0.27522024,92336.0,92335.0,0.00010958]
[1765549379047,0.31973052,92336.0,92335.0,0.00010958]
[1765549388519,0.33056346,92336.0,92335.0,0.00010958]
[1765549389133,0.42226543,92336.0,92335.0,0.00010958]
[1765549389371,0.28605318,92336.0,92335.0,0.00010958]
[1765549392039,0.27522024,92336.0,92335.0,0.00010958]
[1765549394018,0.31973052,92336.0,92335.0,0.00010958]
[1765549394223,0.33056369,92336.0,92335.0,0.00010958]
[1765549394469,0.28605341,92336.0,92335.0,0.00010958]
[1765549394674,0.33056369,92336.0,92335.0,0.00010958]
[1765549395074,0.43372776,92336.0,92335.0,0.00010958]
[1765549395734,0.38921748,92336.0,92335.0,0.00010958]
[1765549395942,0.43372776,92336.0,92335.0,0.00010958]
[1765549396169,0.33056369,92336.0,92335.0,0.00010958]
[1765549396568,0.28605341,92336.0,92335.0,0.00010958]
[1765549396770,0.33056369,92336.0,92335.0,0.00010958]
[1765549397175,0.28605341,92336.0,92335.0,0.00010958]
[1765549397395,0.33056369,92336.0,92335.0,0.00010958]
[1765549397603,0.28605341,92336.0,92335.0,0.00010958]
[1765549397969,0.38921748,92336.0,92335.0,0.00010958]
[1765549398202,0.43372776,92336.0,92335.0,0.00010958]
[1765549399500,0.75796233,92336.0,92335.0,0.00010958]
[1765549401681,0.75296233,92336.0,92335.0,0.00010958]
[1765549402130,0.75596233,92336.0,92335.0,0.00110958]
[1765549402544,0.76296233,92336.0,92335.0,0.00210958]
[1765549408389,0.73957745,92336.0,92335.0,0.00210958]
[1765549410335,0.72942776,92336.0,92335.0,0.00210958]
[1765549411106,0.73956415,92336.0,92335.0,0.00210958]
[1765549411312,0.72942776,92336.0,92335.0,0.00210958]
[1765549415281,0.73956425,92336.0,92335.0,0.00210958]
[1765549417455,0.76291961,92336.0,92335.0,0.00210958]
[1765549417662,0.72942776,92336.0,92335.0,0.00210958]
[1765549421436,0.76292489,92336.0,92335.0,0.00210958]
[1765549422162,0.81294328,92336.0,92335.0,0.00210958]
[1765549422354,0.81294328,92336.0,92297.0,0.01708]
[1765549422355,0.21668941,92298.0,92297.0,0.01708]
[1765549422565,0.23195941,92298.0,92297.0,6.744e-05]
[1765549423849,0.23195941,92298.0,92297.0,0.00106744]
[1765549424199,0.24791941,92298.0,92297.0,0.00106744]
[1765549425341,0.24791941,92298.0,92297.0,0.00306744]
[1765549425543,0.34068126,92298.0,92297.0,0.00306744]
[1765549426155,0.34068126,92298.0,92297.0,0.00106744]
[1765549426356,0.34068126,92298.0,92297.0,6.744e-05]
[1765549426782,0.34068126,92298.0,92297.0,0.00206744]
[1765549428417,0.24791941,92298.0,92297.0,0.00206744]
[1765549431429,0.25875505,92298.0,92297.0,0.00206744]
[1765549435463,0.26036792,92298.0,92297.0,0.00206744]
[1765549445999,0.3048782,92298.0,92297.0,0.00206744]
[1765549446216,0.26036792,92298.0,92297.0,0.00206744]
[1765549446422,0.3048782,92298.0,92297.0,0.00206744]
[1765549447860,0.26036792,92298.0,92297.0,0.00206744]
[1765549449015,0.3048782,92298.0,92297.0,0.00206744]
[1765549450796,0.26036792,92298.0,92297.0,0.00206744]
[1765549455385,0.24440792,92298.0,92297.0,0.00206744]
[1765549456201,0.26036792,92298.0,92297.0,0.00206744]
[1765549456763,0.36053365,92298.0,92297.0,0.00206744]
[1765549457536,0.26036792,92298.0,92297.0,0.00206744]
[1765549464481,0.3048782,92298.0,92297.0,0.00206744]
[1765549479540,0.26036792,92298.0,92297.0,0.00206744]
[1765549479755,0.3048782,92298.0,92297.0,0.00206744]
[1765549480555,0.3048782,92298.0,92297.0,0.00106744]
[1765549480913,0.40504393,92298.0,92297.0,0.00106744]
[1765549481056,0.41004393,92298.0,92297.0,0.00206744]
[1765549481473,0.41004393,92298.0,92297.0,0.00106744]
[1765549482166,0.3098782,92298.0,92297.0,0.00106744]
[1765549483308,0.26536792,92298.0,92297.0,0.00106744]
[1765549483508,0.3269582,92298.0,92297.0,0.00106744]
[1765549484097,0.3329582,92298.0,92297.0,0.00206744]
[1765549485790,0.3158782,92298.0,92297.0,0.00206744]
[1765549485988,0.3329582,92298.0,92297.0,0.00206744]
[1765549486659,0.38971365,92298.0,92297.0,0.00206744]
[1765549486850,0.43422393,92298.0,92297.0,0.00206744]
[1765549491492,2.22696653,92298.0,92297.0,0.00206744]
[1765549491697,2.60192748,92294.0,92293.0,0.00210039]
[1765549491935,2.65082569,92294.0,92293.0,0.00210039]